[Event "Late-Titled-Tuesday-Blitz-September-12-2023"]
[Site "Chess.com"]
[Date "2023.09.12"]
[Round "10"]
[White "ARTHURMOTIVATOR"]
[Black "Nekoo04"]
[Result "1-0"]
[WhiteElo "2398"]
[BlackElo "2285"]
[TimeControl "180+1"]
[EndTime "15:48:44 PDT"]
[Termination "ARTHURMOTIVATOR won by resignation"]

1. e4 {[%clk 0:02:54.7]} 1... c5 {[%clk 0:02:56]} 2. b3 {[%clk 0:02:51.5]} 2...
Nc6 {[%clk 0:02:46]} 3. Bb2 {[%clk 0:02:51.1]} 3... e6 {[%clk 0:02:32.7]} 4. Bb5
{[%clk 0:02:48.2]} 4... d5 {[%clk 0:02:31.9]} 5. exd5 {[%clk 0:02:44.9]} 5...
exd5 {[%clk 0:02:29.4]} 6. Nf3 {[%clk 0:02:45]} 6... Nf6 {[%clk 0:02:29.1]} 7.
Qe2+ {[%clk 0:02:44.5]} 7... Be6 {[%clk 0:02:15.2]} 8. Ng5 {[%clk 0:02:37.5]}
8... Qe7 {[%clk 0:02:10]} 9. Nxe6 {[%clk 0:02:34.2]} 9... Qxe6 {[%clk 0:02:09]}
10. Bxf6 {[%clk 0:02:25.2]} 10... gxf6 {[%clk 0:02:06.9]} 11. Nc3 {[%clk
0:02:08.5]} 11... d4 {[%clk 0:01:47.1]} 12. Bxc6+ {[%clk 0:01:56.7]} 12... bxc6
{[%clk 0:01:35.1]} 13. Ne4 {[%clk 0:01:55.9]} 13... f5 {[%clk 0:01:28.5]} 14.
Ng5 {[%clk 0:01:49.1]} 14... Qxe2+ {[%clk 0:01:23]} 15. Kxe2 {[%clk 0:01:50]}
15... Bh6 {[%clk 0:01:15.2]} 16. Nf3 {[%clk 0:01:46.5]} 16... Rg8 {[%clk
0:01:03.4]} 17. g3 {[%clk 0:01:45.4]} 17... f4 {[%clk 0:00:54.5]} 18. Kd3 {[%clk
0:01:45.2]} 18... O-O-O {[%clk 0:00:36.9]} 19. Rae1 {[%clk 0:01:44]} 19... Rde8
{[%clk 0:00:30.3]} 20. Ne5 {[%clk 0:01:39]} 20... Kc7 {[%clk 0:00:19.6]} 21.
Nxf7 {[%clk 0:01:35.7]} 21... fxg3 {[%clk 0:00:09.4]} 22. hxg3 {[%clk
0:01:20.2]} 22... Rxe1 {[%clk 0:00:08.6]} 23. Rxe1 {[%clk 0:01:19.5]} 23... Bg7
{[%clk 0:00:04.4]} 24. Re7+ {[%clk 0:01:17.5]} 24... Kb6 {[%clk 0:00:04.4]} 25.
Nd6 {[%clk 0:01:17.6]} 25... Bf8 {[%clk 0:00:04.3]} 26. Nc4+ {[%clk 0:01:15.1]}
26... Ka6 {[%clk 0:00:03.1]} 27. Rxh7 {[%clk 0:01:10.4]} 1-0

[Event "Late-Titled-Tuesday-Blitz-September-12-2023"]
[Site "Chess.com"]
[Date "2023.09.12"]
[Round "10"]
[White "MikaelyanArman"]
[Black "hellokostya"]
[Result "1-0"]
[WhiteElo "2927"]
[BlackElo "2623"]
[TimeControl "180+1"]
[EndTime "15:48:52 PDT"]
[Termination "MikaelyanArman won by resignation"]

1. Nf3 {[%clk 0:02:59.6]} 1... Nf6 {[%clk 0:02:59.8]} 2. g3 {[%clk 0:03:00]}
2... g6 {[%clk 0:03:00]} 3. Bg2 {[%clk 0:03:00.7]} 3... Bg7 {[%clk 0:03:00.5]}
4. b3 {[%clk 0:03:01]} 4... O-O {[%clk 0:03:00.8]} 5. Bb2 {[%clk 0:03:01.5]}
5... d6 {[%clk 0:03:00.6]} 6. d4 {[%clk 0:03:01]} 6... a5 {[%clk 0:03:01.3]} 7.
a4 {[%clk 0:03:00.3]} 7... c6 {[%clk 0:02:58.2]} 8. O-O {[%clk 0:03:00.3]} 8...
Na6 {[%clk 0:02:58.2]} 9. Nbd2 {[%clk 0:03:00.4]} 9... Qc7 {[%clk 0:02:50]} 10.
e4 {[%clk 0:03:00.6]} 10... Bg4 {[%clk 0:02:46.6]} 11. h3 {[%clk 0:03:00.5]}
11... Bxf3 {[%clk 0:02:45.2]} 12. Qxf3 {[%clk 0:03:00.7]} 12... Nd7 {[%clk
0:02:44.6]} 13. Qe2 {[%clk 0:02:56]} 13... e5 {[%clk 0:02:41]} 14. dxe5 {[%clk
0:02:56.5]} 14... dxe5 {[%clk 0:02:36.6]} 15. Nc4 {[%clk 0:02:53.1]} 15... Rfd8
{[%clk 0:02:30.9]} 16. Bc3 {[%clk 0:02:45.6]} 16... Nb4 {[%clk 0:02:28.6]} 17.
Rad1 {[%clk 0:02:45.8]} 17... Nc5 {[%clk 0:02:16.4]} 18. Rxd8+ {[%clk
0:02:41.2]} 18... Rxd8 {[%clk 0:02:15.6]} 19. Rd1 {[%clk 0:02:42.1]} 19... f6
{[%clk 0:02:11.2]} 20. Rxd8+ {[%clk 0:02:35.8]} 20... Qxd8 {[%clk 0:02:12.1]}
21. Nxe5 {[%clk 0:02:27.5]} 21... fxe5 {[%clk 0:01:37.7]} 22. Qc4+ {[%clk
0:02:25.8]} 22... Kh8 {[%clk 0:01:28.9]} 23. Qxc5 {[%clk 0:02:25.6]} 23... Qd1+
{[%clk 0:01:26.1]} 24. Bf1 {[%clk 0:02:25.4]} 24... b6 {[%clk 0:00:54]} 25. Qe7
{[%clk 0:02:20.4]} 25... h6 {[%clk 0:00:35]} 26. Bxe5 {[%clk 0:02:18.8]} 26...
Bxe5 {[%clk 0:00:35.3]} 27. Qxe5+ {[%clk 0:02:19.7]} 27... Kh7 {[%clk
0:00:35.5]} 28. Qe7+ {[%clk 0:02:19.7]} 28... Kh8 {[%clk 0:00:35.9]} 29. Qf8+
{[%clk 0:02:17.9]} 29... Kh7 {[%clk 0:00:36]} 30. Qf7+ {[%clk 0:02:18.8]} 30...
Kh8 {[%clk 0:00:36.2]} 31. Qxg6 {[%clk 0:02:07.1]} 31... Nxc2 {[%clk 0:00:36.4]}
32. Qxh6+ {[%clk 0:02:06.1]} 32... Kg8 {[%clk 0:00:36.6]} 33. Qg6+ {[%clk
0:02:06.8]} 33... Kh8 {[%clk 0:00:36.6]} 34. Qf6+ {[%clk 0:01:37.6]} 34... Kg8
{[%clk 0:00:33.5]} 35. h4 {[%clk 0:01:23.4]} 35... Nd4 {[%clk 0:00:29.9]} 36.
Kg2 {[%clk 0:01:23.8]} 36... b5 {[%clk 0:00:18.8]} 37. axb5 {[%clk 0:01:21.5]}
37... cxb5 {[%clk 0:00:19.7]} 38. h5 {[%clk 0:01:14.3]} 1-0

[Event "Late-Titled-Tuesday-Blitz-September-12-2023"]
[Site "Chess.com"]
[Date "2023.09.12"]
[Round "10"]
[White "Chessdreamer2020"]
[Black "emeli_chess"]
[Result "1-0"]
[WhiteElo "2519"]
[BlackElo "2378"]
[TimeControl "180+1"]
[EndTime "15:48:58 PDT"]
[Termination "Chessdreamer2020 won on time"]

1. e4 {[%clk 0:02:54]} 1... e5 {[%clk 0:02:59]} 2. Nf3 {[%clk 0:02:54]} 2... Nc6
{[%clk 0:02:59.3]} 3. Be2 {[%clk 0:02:49.5]} 3... Nf6 {[%clk 0:02:57.9]} 4. d3
{[%clk 0:02:49.9]} 4... d5 {[%clk 0:02:54.3]} 5. Nbd2 {[%clk 0:02:49.5]} 5...
dxe4 {[%clk 0:02:44.9]} 6. dxe4 {[%clk 0:02:50.4]} 6... Bc5 {[%clk 0:02:36.1]}
7. O-O {[%clk 0:02:49.8]} 7... O-O {[%clk 0:02:35.4]} 8. c3 {[%clk 0:02:50.2]}
8... a5 {[%clk 0:02:31.6]} 9. Qc2 {[%clk 0:02:50.5]} 9... h6 {[%clk 0:02:23.6]}
10. Nc4 {[%clk 0:02:50]} 10... Qe7 {[%clk 0:02:20.7]} 11. h3 {[%clk 0:02:43.7]}
11... Nh5 {[%clk 0:01:54.2]} 12. Rd1 {[%clk 0:02:22.4]} 12... Nf4 {[%clk
0:01:37.2]} 13. Bxf4 {[%clk 0:02:21.8]} 13... exf4 {[%clk 0:01:36.7]} 14. e5
{[%clk 0:02:05.5]} 14... b5 {[%clk 0:01:22.7]} 15. Qe4 {[%clk 0:01:55.7]} 15...
bxc4 {[%clk 0:01:19.1]} 16. Qxc6 {[%clk 0:01:54.6]} 16... Ra6 {[%clk 0:01:02.8]}
17. Qe4 {[%clk 0:01:50.2]} 17... Rg6 {[%clk 0:00:57.4]} 18. Kf1 {[%clk
0:01:49.7]} 18... Qe6 {[%clk 0:00:18.9]} 19. Bxc4 {[%clk 0:01:48.2]} 19... Qb6
{[%clk 0:00:13.4]} 20. Rd2 {[%clk 0:01:47.3]} 20... Bb7 {[%clk 0:00:08.7]} 21.
Qxf4 {[%clk 0:01:46.3]} 21... a4 {[%clk 0:00:07.5]} 22. Bd3 {[%clk 0:01:45.7]}
22... Re6 {[%clk 0:00:06.5]} 23. Bf5 {[%clk 0:01:44.1]} 23... Re7 {[%clk
0:00:05.9]} 24. Be4 {[%clk 0:01:43.6]} 24... a3 {[%clk 0:00:05.5]} 25. b3 {[%clk
0:01:42.5]} 25... Ba6+ {[%clk 0:00:04]} 26. c4 {[%clk 0:01:41.7]} 26... Bb4
{[%clk 0:00:03.6]} 27. Rd5 {[%clk 0:01:40.7]} 27... Bc3 {[%clk 0:00:03.7]} 28.
Rad1 {[%clk 0:01:40.1]} 28... Bb7 {[%clk 0:00:03.3]} 29. Rd7 {[%clk 0:01:39.7]}
29... Bxe4 {[%clk 0:00:03.2]} 30. Qxe4 {[%clk 0:01:40.6]} 30... Re6 {[%clk
0:00:02.8]} 31. Rd8 {[%clk 0:01:37.4]} 31... Ree8 {[%clk 0:00:02.5]} 32. R8d7
{[%clk 0:01:36.3]} 32... Re6 {[%clk 0:00:02.4]} 33. Qf5 {[%clk 0:01:24]} 33...
Qc6 {[%clk 0:00:01.2]} 34. R1d5 {[%clk 0:01:19.2]} 1-0

[Event "Late-Titled-Tuesday-Blitz-September-12-2023"]
[Site "Chess.com"]
[Date "2023.09.12"]
[Round "10"]
[White "kreonx"]
[Black "pirulillo"]
[Result "1-0"]
[WhiteElo "2463"]
[BlackElo "2335"]
[TimeControl "180+1"]
[EndTime "15:49:08 PDT"]
[Termination "kreonx won by checkmate"]

1. e4 {[%clk 0:02:53]} 1... c5 {[%clk 0:03:00.1]} 2. Nc3 {[%clk 0:02:51.8]} 2...
e6 {[%clk 0:03:00.3]} 3. Nge2 {[%clk 0:02:50.3]} 3... Nc6 {[%clk 0:03:00.8]} 4.
g3 {[%clk 0:02:50]} 4... Nge7 {[%clk 0:02:46.3]} 5. d4 {[%clk 0:02:42.8]} 5...
cxd4 {[%clk 0:02:44.8]} 6. Nxd4 {[%clk 0:02:43.7]} 6... Nxd4 {[%clk 0:02:44.9]}
7. Qxd4 {[%clk 0:02:43.8]} 7... Nc6 {[%clk 0:02:45.8]} 8. Qd3 {[%clk 0:02:42.8]}
8... a6 {[%clk 0:02:39.1]} 9. Bg2 {[%clk 0:02:41.1]} 9... Be7 {[%clk 0:02:36.1]}
10. Bf4 {[%clk 0:02:41]} 10... Qa5 {[%clk 0:02:23.1]} 11. O-O {[%clk 0:02:35.9]}
11... O-O {[%clk 0:02:21.2]} 12. a3 {[%clk 0:02:32.6]} 12... Ne5 {[%clk
0:02:12.5]} 13. Qe2 {[%clk 0:02:27.5]} 13... d6 {[%clk 0:02:09.6]} 14. Be3
{[%clk 0:02:24.5]} 14... b5 {[%clk 0:02:07.3]} 15. f4 {[%clk 0:02:23.8]} 15...
Nc4 {[%clk 0:02:06.9]} 16. e5 {[%clk 0:02:15.7]} 16... d5 {[%clk 0:02:05.6]} 17.
Bd4 {[%clk 0:02:16.3]} 17... Qc7 {[%clk 0:01:34.9]} 18. Qf2 {[%clk 0:02:16.3]}
18... Bb7 {[%clk 0:01:27.8]} 19. b3 {[%clk 0:02:15.3]} 19... Nxa3 {[%clk
0:01:21.4]} 20. f5 {[%clk 0:02:10.2]} 20... Rac8 {[%clk 0:01:07.4]} 21. f6
{[%clk 0:02:08.5]} 21... Bc5 {[%clk 0:01:07.2]} 22. Ne2 {[%clk 0:01:53.8]} 22...
g6 {[%clk 0:01:01.4]} 23. Qf4 {[%clk 0:01:43.9]} 23... Rfd8 {[%clk 0:00:58.5]}
24. Bxc5 {[%clk 0:01:39.8]} 24... Qxc5+ {[%clk 0:00:57.9]} 25. Kh1 {[%clk
0:01:38.6]} 25... Nxc2 {[%clk 0:00:56.7]} 26. Rac1 {[%clk 0:01:37.9]} 26... Qe3
{[%clk 0:00:53.5]} 27. Qh4 {[%clk 0:01:18.5]} 27... h6 {[%clk 0:00:34.8]} 28.
Nf4 {[%clk 0:01:17.6]} 28... Kh7 {[%clk 0:00:32.2]} 29. Nxe6 {[%clk 0:00:58.2]}
29... fxe6 {[%clk 0:00:29.7]} 30. f7 {[%clk 0:00:59.1]} 30... Nd4 {[%clk
0:00:20.7]} 31. Rxc8 {[%clk 0:00:48.7]} 31... Rxc8 {[%clk 0:00:20.6]} 32. f8=Q
{[%clk 0:00:46]} 32... Rxf8 {[%clk 0:00:21.3]} 33. Qe7+ {[%clk 0:00:46]} 33...
Kh8 {[%clk 0:00:18.4]} 34. Rxf8# {[%clk 0:00:44.6]} 1-0

[Event "Late-Titled-Tuesday-Blitz-September-12-2023"]
[Site "Chess.com"]
[Date "2023.09.12"]
[Round "10"]
[White "Oleksandr_Bortnyk"]
[Black "Korchmar_Vasiliy"]
[Result "1-0"]
[WhiteElo "3004"]
[BlackElo "2719"]
[TimeControl "180+1"]
[EndTime "15:49:10 PDT"]
[Termination "Oleksandr_Bortnyk won on time"]

1. e4 {[%clk 0:02:57.9]} 1... c5 {[%clk 0:03:00.3]} 2. c3 {[%clk 0:02:58.1]}
2... d5 {[%clk 0:03:00.4]} 3. exd5 {[%clk 0:02:59]} 3... Nf6 {[%clk 0:03:00.9]}
4. Qa4+ {[%clk 0:02:58.8]} 4... Nbd7 {[%clk 0:02:59.2]} 5. Qb3 {[%clk
0:02:58.1]} 5... g6 {[%clk 0:02:54.8]} 6. Nf3 {[%clk 0:02:49.8]} 6... Bg7 {[%clk
0:02:53.9]} 7. Be2 {[%clk 0:02:45]} 7... O-O {[%clk 0:02:53.3]} 8. O-O {[%clk
0:02:45.6]} 8... Nb6 {[%clk 0:02:47.1]} 9. c4 {[%clk 0:02:46.3]} 9... e6 {[%clk
0:02:47.7]} 10. dxe6 {[%clk 0:02:47.1]} 10... Bxe6 {[%clk 0:02:48.4]} 11. d3
{[%clk 0:02:44.5]} 11... Re8 {[%clk 0:02:25.4]} 12. Nc3 {[%clk 0:02:44.7]} 12...
Bf5 {[%clk 0:02:25.8]} 13. Be3 {[%clk 0:02:33.8]} 13... Ng4 {[%clk 0:02:21.6]}
14. Bg5 {[%clk 0:02:28.7]} 14... Qd7 {[%clk 0:01:54.1]} 15. Rfe1 {[%clk
0:02:18.7]} 15... Ne5 {[%clk 0:01:14.8]} 16. Nxe5 {[%clk 0:02:08.4]} 16... Bxe5
{[%clk 0:01:15.7]} 17. Rad1 {[%clk 0:02:04]} 17... Bd4 {[%clk 0:00:59.5]} 18.
Bh4 {[%clk 0:01:52.9]} 18... Bg4 {[%clk 0:00:52.6]} 19. Bxg4 {[%clk 0:01:49.7]}
19... Qxg4 {[%clk 0:00:53.5]} 20. Bg3 {[%clk 0:01:49.5]} 20... h5 {[%clk
0:00:49.9]} 21. Ne4 {[%clk 0:01:25.3]} 21... h4 {[%clk 0:00:29.1]} 22. h3 {[%clk
0:01:25.7]} 22... Qe6 {[%clk 0:00:29.6]} 23. Bxh4 {[%clk 0:01:24.5]} 23... Qf5
{[%clk 0:00:20.7]} 24. Qc2 {[%clk 0:01:14.5]} 24... Re6 {[%clk 0:00:19.4]} 25.
Qd2 {[%clk 0:01:13.3]} 25... Rae8 {[%clk 0:00:19.1]} 26. b3 {[%clk 0:01:08.9]}
26... Kg7 {[%clk 0:00:10.8]} 27. Bg3 {[%clk 0:00:55.1]} 27... Nd7 {[%clk
0:00:09.1]} 28. Kh2 {[%clk 0:00:52.4]} 28... Be5 {[%clk 0:00:05.5]} 29. Re3
{[%clk 0:00:48.6]} 29... Bd4 {[%clk 0:00:01.9]} 30. Nd6 {[%clk 0:00:46.4]} 1-0

[Event "Late-Titled-Tuesday-Blitz-September-12-2023"]
[Site "Chess.com"]
[Date "2023.09.12"]
[Round "10"]
[White "GoltsevDmitry2000"]
[Black "Skagoogle"]
[Result "1-0"]
[WhiteElo "2643"]
[BlackElo "2770"]
[TimeControl "180+1"]
[EndTime "15:49:11 PDT"]
[Termination "GoltsevDmitry2000 won by checkmate"]

1. e4 {[%clk 0:02:59.1]} 1... c5 {[%clk 0:02:55.9]} 2. Nf3 {[%clk 0:02:57.8]}
2... d6 {[%clk 0:02:56.2]} 3. d4 {[%clk 0:02:58.5]} 3... cxd4 {[%clk 0:02:57.1]}
4. Nxd4 {[%clk 0:02:59.3]} 4... Nf6 {[%clk 0:02:57.7]} 5. Nc3 {[%clk 0:02:59.5]}
5... Nc6 {[%clk 0:02:58.5]} 6. Be2 {[%clk 0:02:59.2]} 6... Qb6 {[%clk
0:02:56.3]} 7. Nb3 {[%clk 0:02:58.6]} 7... e6 {[%clk 0:02:53.1]} 8. Be3 {[%clk
0:02:58.6]} 8... Qc7 {[%clk 0:02:53.3]} 9. O-O {[%clk 0:02:58.8]} 9... a6 {[%clk
0:02:53.5]} 10. f4 {[%clk 0:02:59.1]} 10... b5 {[%clk 0:02:50.7]} 11. a3 {[%clk
0:02:59.6]} 11... Bb7 {[%clk 0:02:51]} 12. Bf3 {[%clk 0:03:00]} 12... Be7 {[%clk
0:02:50.7]} 13. Qe2 {[%clk 0:02:59.7]} 13... O-O {[%clk 0:02:50.1]} 14. Qf2
{[%clk 0:03:00.4]} 14... Rfe8 {[%clk 0:02:47.1]} 15. Rad1 {[%clk 0:02:59.3]}
15... Rac8 {[%clk 0:02:46.8]} 16. g4 {[%clk 0:02:58.3]} 16... Nd7 {[%clk
0:02:28.2]} 17. h4 {[%clk 0:02:54.5]} 17... Na5 {[%clk 0:02:27.6]} 18. Nxa5
{[%clk 0:02:51.7]} 18... Qxa5 {[%clk 0:02:28.5]} 19. f5 {[%clk 0:02:51.2]} 19...
Rxc3 {[%clk 0:02:12.6]} 20. bxc3 {[%clk 0:02:48.8]} 20... Ne5 {[%clk 0:02:12.9]}
21. Bd4 {[%clk 0:02:42.3]} 21... Nxf3+ {[%clk 0:01:55.3]} 22. Qxf3 {[%clk
0:02:41.5]} 22... e5 {[%clk 0:01:55.8]} 23. Bf2 {[%clk 0:02:35.9]} 23... Rc8
{[%clk 0:01:49.8]} 24. g5 {[%clk 0:02:21.3]} 24... Rxc3 {[%clk 0:01:44.2]} 25.
Rd3 {[%clk 0:02:17.5]} 25... Rc4 {[%clk 0:01:44.3]} 26. f6 {[%clk 0:02:13.3]}
26... Bf8 {[%clk 0:01:27.6]} 27. Re1 {[%clk 0:02:07.3]} 27... g6 {[%clk
0:01:18.4]} 28. Re2 {[%clk 0:02:02]} 28... Qa4 {[%clk 0:01:09.6]} 29. Rde3
{[%clk 0:01:53.3]} 29... h6 {[%clk 0:00:46.7]} 30. h5 {[%clk 0:01:51.2]} 30...
gxh5 {[%clk 0:00:25.9]} 31. Qxh5 {[%clk 0:01:47.5]} 31... Bxe4 {[%clk
0:00:21.5]} 32. gxh6 {[%clk 0:01:45.6]} 32... Bg6 {[%clk 0:00:21]} 33. Qh3
{[%clk 0:01:40.3]} 33... Kh7 {[%clk 0:00:18.6]} 34. Rg3 {[%clk 0:01:38.6]} 34...
Rxc2 {[%clk 0:00:16.9]} 35. Rxg6 {[%clk 0:01:29.9]} 35... Rc1+ {[%clk 0:00:05]}
36. Kg2 {[%clk 0:01:26.6]} 36... Kxg6 {[%clk 0:00:02.6]} 37. h7 {[%clk
0:01:24.7]} 37... Qd1 {[%clk 0:00:02.8]} 38. h8=Q {[%clk 0:01:22.6]} 38... Qf1+
{[%clk 0:00:02.7]} 39. Kg3 {[%clk 0:01:18]} 39... Rc3+ {[%clk 0:00:03.1]} 40.
Be3 {[%clk 0:01:15]} 40... Qxe2 {[%clk 0:00:02.2]} 41. Q3h7# {[%clk 0:01:11.2]}
1-0

[Event "Late-Titled-Tuesday-Blitz-September-12-2023"]
[Site "Chess.com"]
[Date "2023.09.12"]
[Round "10"]
[White "CURRUTACO59"]
[Black "Bala-Afiada"]
[Result "1-0"]
[WhiteElo "2256"]
[BlackElo "1963"]
[TimeControl "180+1"]
[EndTime "15:49:13 PDT"]
[Termination "CURRUTACO59 won by resignation"]

1. Nf3 {[%clk 0:03:00.9]} 1... d5 {[%clk 0:02:57.2]} 2. d4 {[%clk 0:03:00.9]}
2... Nf6 {[%clk 0:02:56.6]} 3. c4 {[%clk 0:03:01.3]} 3... e6 {[%clk 0:02:56.4]}
4. cxd5 {[%clk 0:02:59.7]} 4... exd5 {[%clk 0:02:56.9]} 5. Nc3 {[%clk
0:03:00.2]} 5... c6 {[%clk 0:02:56]} 6. Bg5 {[%clk 0:02:58.9]} 6... h6 {[%clk
0:02:56]} 7. Bh4 {[%clk 0:02:58]} 7... Be7 {[%clk 0:02:56]} 8. e3 {[%clk
0:02:58.2]} 8... Bg4 {[%clk 0:02:55.3]} 9. Bd3 {[%clk 0:02:57]} 9... Nbd7 {[%clk
0:02:54.9]} 10. h3 {[%clk 0:02:56.7]} 10... Be6 {[%clk 0:02:50.1]} 11. Qc2
{[%clk 0:02:50.4]} 11... c5 {[%clk 0:02:49.3]} 12. dxc5 {[%clk 0:02:42.2]} 12...
Nxc5 {[%clk 0:02:47.1]} 13. Bb5+ {[%clk 0:02:39.1]} 13... Ncd7 {[%clk
0:02:41.7]} 14. O-O {[%clk 0:02:35.2]} 14... a6 {[%clk 0:02:41.8]} 15. Be2
{[%clk 0:02:32.1]} 15... O-O {[%clk 0:02:29.7]} 16. Rac1 {[%clk 0:02:28.3]}
16... Rc8 {[%clk 0:02:30]} 17. Qb1 {[%clk 0:02:26]} 17... Nc5 {[%clk 0:02:27.6]}
18. Rfd1 {[%clk 0:02:23.8]} 18... Nfe4 {[%clk 0:02:01.5]} 19. Bxe7 {[%clk
0:02:14.4]} 19... Qxe7 {[%clk 0:02:02.4]} 20. Nxd5 {[%clk 0:02:03]} 20... Bxd5
{[%clk 0:01:49.8]} 21. Rxd5 {[%clk 0:02:03.9]} 21... Rfd8 {[%clk 0:01:41]} 22.
Re5 {[%clk 0:01:59.3]} 22... Qd6 {[%clk 0:01:05.7]} 23. Rd1 {[%clk 0:01:23.1]}
23... Qf6 {[%clk 0:00:29.9]} 24. Rxd8+ {[%clk 0:00:52]} 24... Qxd8 {[%clk
0:00:14.9]} 25. Rxe4 {[%clk 0:00:45.7]} 25... Nxe4 {[%clk 0:00:15.8]} 26. Qxe4
{[%clk 0:00:45.4]} 26... Rc1+ {[%clk 0:00:15.7]} 27. Kh2 {[%clk 0:00:40]} 27...
Qc7+ {[%clk 0:00:13.3]} 28. g3 {[%clk 0:00:37.8]} 28... Rc2 {[%clk 0:00:10.8]}
29. Qe8+ {[%clk 0:00:36.5]} 1-0

[Event "Late-Titled-Tuesday-Blitz-September-12-2023"]
[Site "Chess.com"]
[Date "2023.09.12"]
[Round "10"]
[White "bazar-wokzal"]
[Black "MarcoRiehle"]
[Result "0-1"]
[WhiteElo "2594"]
[BlackElo "2778"]
[TimeControl "180+1"]
[EndTime "15:49:16 PDT"]
[Termination "MarcoRiehle won by resignation"]

1. e4 {[%clk 0:03:00.9]} 1... e5 {[%clk 0:03:00.5]} 2. Bc4 {[%clk 0:03:00]} 2...
Nf6 {[%clk 0:03:00.7]} 3. d3 {[%clk 0:02:59.6]} 3... c6 {[%clk 0:03:00.6]} 4.
Nf3 {[%clk 0:02:59.2]} 4... d5 {[%clk 0:03:00.2]} 5. Bb3 {[%clk 0:02:58.9]} 5...
Bd6 {[%clk 0:03:00.3]} 6. Nc3 {[%clk 0:02:58.6]} 6... Bc7 {[%clk 0:02:57.3]} 7.
Bg5 {[%clk 0:02:57.4]} 7... d4 {[%clk 0:02:57.7]} 8. Ne2 {[%clk 0:02:57.2]} 8...
a5 {[%clk 0:02:55.8]} 9. c3 {[%clk 0:02:55.8]} 9... dxc3 {[%clk 0:02:54.4]} 10.
bxc3 {[%clk 0:02:55.5]} 10... h6 {[%clk 0:02:54.5]} 11. Bh4 {[%clk 0:02:55.1]}
11... Bg4 {[%clk 0:02:52.7]} 12. O-O {[%clk 0:02:31.2]} 12... Bxf3 {[%clk
0:02:51.8]} 13. gxf3 {[%clk 0:02:31.5]} 13... O-O {[%clk 0:02:50.4]} 14. Kh1
{[%clk 0:02:30.6]} 14... Nbd7 {[%clk 0:02:46.6]} 15. Rg1 {[%clk 0:02:30.2]}
15... Qe8 {[%clk 0:02:46.4]} 16. Rg2 {[%clk 0:02:20.3]} 16... Bd8 {[%clk
0:02:41.5]} 17. Ng3 {[%clk 0:02:04.2]} 17... Kh7 {[%clk 0:02:30.2]} 18. Nf5
{[%clk 0:01:59.9]} 18... Rg8 {[%clk 0:02:25.8]} 19. Qg1 {[%clk 0:01:33.6]} 19...
Nh5 {[%clk 0:02:20]} 20. Nd6 {[%clk 0:01:25.2]} 20... Qf8 {[%clk 0:02:18.9]} 21.
Bxd8 {[%clk 0:01:14.9]} 21... Qxd6 {[%clk 0:02:17.2]} 22. Bxf7 {[%clk
0:01:14.5]} 22... Raxd8 {[%clk 0:02:11.3]} 23. Bxh5 {[%clk 0:01:11.2]} 23... g6
{[%clk 0:01:59]} 24. Bg4 {[%clk 0:01:04.1]} 24... Nf6 {[%clk 0:01:59]} 25. Rd1
{[%clk 0:00:58.3]} 25... Rg7 {[%clk 0:01:56.2]} 26. d4 {[%clk 0:00:56.8]} 26...
Re8 {[%clk 0:01:52.1]} 27. h4 {[%clk 0:00:45.6]} 27... h5 {[%clk 0:01:48.2]} 28.
Bh3 {[%clk 0:00:35.9]} 28... exd4 {[%clk 0:01:48.2]} 29. cxd4 {[%clk 0:00:34.8]}
29... Qf4 {[%clk 0:01:47.8]} 30. Rg3 {[%clk 0:00:19.8]} 30... Qxh4 {[%clk
0:01:47.2]} 31. Qh2 {[%clk 0:00:20.3]} 31... Kh6 {[%clk 0:01:29.5]} 32. Rdg1
{[%clk 0:00:20.4]} 32... g5 {[%clk 0:01:27.9]} 33. Bf5 {[%clk 0:00:19.2]} 33...
Qxh2+ {[%clk 0:01:27.6]} 34. Kxh2 {[%clk 0:00:20]} 34... Rd8 {[%clk 0:01:27]}
35. e5 {[%clk 0:00:19.4]} 35... Nd5 {[%clk 0:01:26.4]} 36. f4 {[%clk 0:00:19]}
36... Nxf4 {[%clk 0:01:25.7]} 37. e6 {[%clk 0:00:16]} 37... Ne2 {[%clk
0:01:18.4]} 38. Re3 {[%clk 0:00:14.3]} 38... Nxg1 {[%clk 0:01:18.3]} 39. Kxg1
{[%clk 0:00:13.4]} 39... Re7 {[%clk 0:01:18]} 40. Re4 {[%clk 0:00:13.2]} 40...
Kg7 {[%clk 0:01:17.1]} 41. f4 {[%clk 0:00:12.3]} 41... g4 {[%clk 0:01:15.5]} 42.
Kf2 {[%clk 0:00:09.4]} 42... Kf6 {[%clk 0:01:15.7]} 43. Re5 {[%clk 0:00:09.9]}
43... Rxd4 {[%clk 0:01:15.6]} 44. Ke3 {[%clk 0:00:09.8]} 44... Rd5 {[%clk
0:01:14.4]} 45. Rxd5 {[%clk 0:00:08.5]} 45... cxd5 {[%clk 0:01:15.1]} 0-1